fUSD/lending_fUSD_20260315
["ID","MTS","AMOUNT","RATE_DAILY","PERIOD"]
[408431514,1773606632532,-657.0,0.00019229,2]
[408431515,1773606632542,-168.0,0.00019248,2]
[408431516,1773606632552,-688.43,0.00019292,2]
[408431517,1773606632561,-350.0,0.00019321,2]
[408431518,1773606632570,-7951.96,0.00019339,2]
[408431519,1773606632580,-168.0,0.00019486,2]
[408431520,1773606632589,-166.66,0.00019519,2]
[408431521,1773606632598,-353.32081147,0.00019579,2]
[408431522,1773606632607,-168.0,0.00019639,2]
[408431523,1773606632616,-181.52,0.00019722,2]
[408431524,1773606632625,-1778.0,0.00019753,2]
[408431525,1773606632634,-7646.6766,0.000198,2]
[408431526,1773606632644,-168.0,0.00019852,2]
[408431527,1773606632653,-4137.0,0.00019861,2]
[408431528,1773606632662,-500.0,0.00019873,2]
[408431529,1773606632671,-5000.0,0.00019898,2]
[408431530,1773606632680,-209.58,0.00019899,2]
[408431531,1773606632690,-329.01887074,0.00019899,2]
[408431532,1773606632700,-5672.07347332,0.00019899,2]
[408431533,1773606632709,-367.2108716,0.00019899,2]
[408431534,1773606632718,-5672.07347326,0.00019899,2]
[408431535,1773606632728,-367.21087151,0.00019899,2]
[408431536,1773606632737,-5672.07347326,0.00019899,2]
[408431537,1773606632747,-367.21087151,0.00019899,2]
[408431538,1773606632756,-5672.07347326,0.00019899,2]
[408431539,1773606632766,-367.21087151,0.00019899,2]
[408431540,1773606632775,-5672.07347326,0.00019899,2]
[408431541,1773606632785,-367.21087151,0.00019899,2]
[408431542,1773606632794,-5672.07347326,0.000199,2]
[408431543,1773606632803,-367.21087151,0.000199,2]
[408431544,1773606632812,-5672.07347326,0.000199,2]
[408431545,1773606632822,-367.21087151,0.000199,2]
[408431546,1773606632831,-5672.07347326,0.000199,2]
[408431547,1773606632849,-367.21087151,0.000199,2]
[408431548,1773606632861,-5672.07347326,0.000199,2]
[408431549,1773606632871,-367.21087151,0.000199,2]
[408431550,1773606632881,-541.1485833,0.000199,2]
[408431551,1773606632891,-1000.0,0.000199,2]
[408431552,1773606632901,-5672.07347326,0.000199,2]
[408431553,1773606632911,-190.70150428,0.000199,2]
[408431554,1773606632922,-401.49856589,0.000199,2]
[408431555,1773606632932,-1062.8185251,0.00019962,2]
[408431556,1773606632948,-283.92312536,0.00019973,2]
[408431557,1773606632960,-500.0,0.00019973,2]
[408431558,1773606632972,-500.92517317,0.00019973,2]
[408431559,1773606632989,-500.0,0.00019973,2]
[408431560,1773606633001,-500.0,0.00019973,2]
[408431561,1773606633012,-500.0,0.00019973,2]
[408431562,1773606633023,-500.0,0.00019973,2]
[408431563,1773606633033,-565.07727747,0.00019973,2]
[408431564,1773606633044,-500.0,0.00019973,2]
[408431565,1773606633055,-297.01217445,0.00019973,2]
[408431566,1773606633064,-500.0,0.00019973,2]
[408431567,1773606633075,-500.0,0.00019973,2]
[408431568,1773606633085,-228.18034199,0.0001999,2]
[408431569,1773606633096,-151.0,0.00019997,2]
[408431570,1773606633107,-483.56806732,0.00019998,2]
[408431571,1773606633118,-500.0,0.00019998,2]
[408431572,1773606633127,-500.0,0.00019998,2]
[408431573,1773606633137,-500.0,0.00019998,2]
[408431574,1773606633147,-500.0,0.00019998,2]
[408431575,1773606633156,-500.0,0.00019998,2]
[408431576,1773606633167,-162.84221237,0.00019998,2]
[408431577,1773606633177,-500.0,0.00019998,2]
[408431578,1773606633193,-500.0,0.00019998,2]
[408431579,1773606633207,-500.0,0.00019998,2]
[408431580,1773606633217,-310.43124522,0.00019998,2]
[408431581,1773606633226,-500.0,0.00019998,2]
[408431582,1773606633236,-500.0,0.00019998,2]
[408431583,1773606633246,-500.0,0.00019998,2]
[408431584,1773606633255,-500.0,0.00019998,2]
[408431585,1773606633265,-500.0,0.00019998,2]
[408431586,1773606633275,-500.0,0.00019998,2]
[408431587,1773606633284,-344.89560658,0.00019998,2]
[408431588,1773606633293,-300.0,0.00019999,2]
[408431589,1773606633303,-2063.2042478,0.00019999,2]
[408431590,1773606633317,-500.0,0.00019999,2]
[408431591,1773606633327,-335.49467405,0.00019999,2]
[408431592,1773606633337,-354.2728419,0.00019999,2]
[408431593,1773606633346,-20754.9740594,0.00019999,2]
[408431594,1773606633359,-155.0,0.00019999,2]
[408431595,1773606633369,-500.0,0.00019999,2]
[408431596,1773606633378,-500.0,0.00019999,2]
[408431597,1773606633387,-500.0,0.00019999,2]
[408431598,1773606633398,-500.0,0.00019999,2]
[408431599,1773606633408,-500.0,0.00019999,2]
[408431600,1773606633417,-410.69539355,0.00019999,2]
[408431601,1773606633427,-500.0,0.00019999,2]
[408431602,1773606633438,-250.11553072,0.00019999,2]
[408431603,1773606633450,-183.09,0.00019999,2]
[408431604,1773606633460,-500.0,0.00019999,2]
[408431605,1773606633471,-500.0,0.00019999,2]
[408431606,1773606633481,-500.0,0.00019999,2]
[408431607,1773606633492,-500.0,0.00019999,2]
[408431608,1773606633503,-554.34014391,0.00019999,2]
[408431609,1773606633513,-262992.5187855,0.00019999,2]
[408431610,1773606633524,-128595.8991325,0.00019999,2]
[408431611,1773606633534,-500.0,0.00019999,2]
[408431612,1773606633543,-500.0,0.00019999,2]
[408431613,1773606633553,-500.0,0.00019999,2]
[408431614,1773606633563,-500.0,0.00019999,2]
[408431615,1773606633572,-171.40613236,0.00019999,2]
[408431616,1773606633582,-1275.58,0.00019999,2]
[408431617,1773606633591,-1275.58,0.00019999,2]
[408431618,1773606633601,-1275.58,0.00019999,2]
[408431619,1773606633611,-1275.58,0.00019999,2]
[408431620,1773606633620,-1275.58,0.00019999,2]
[408431621,1773606633629,-1275.58,0.00019999,2]
[408431622,1773606633639,-1275.58,0.00019999,2]
[408431623,1773606633649,-1275.58,0.00019999,2]
[408431624,1773606633658,-1275.58,0.00019999,2]
[408431625,1773606633668,-1275.58,0.00019999,2]
[408431626,1773606633678,-1275.58,0.00019999,2]
[408431627,1773606633692,-1275.58,0.00019999,2]
[408431628,1773606633701,-1275.58,0.00019999,2]
[408431629,1773606633711,-1275.58,0.00019999,2]
[408431630,1773606633720,-1275.58,0.00019999,2]
[408431631,1773606633730,-1275.58,0.00019999,2]
[408431632,1773606633739,-1275.58,0.00019999,2]
[408431633,1773606633749,-1275.58,0.00019999,2]
[408431634,1773606633759,-1275.58,0.00019999,2]
[408431635,1773606633768,-1275.58,0.00019999,2]
[408431636,1773606633778,-1275.58,0.00019999,2]
[408431637,1773606633796,-1275.58,0.00019999,2]
[408431638,1773606633805,-1275.58,0.00019999,2]
[408431639,1773606633815,-1275.62905965,0.00019999,2]
[408431640,1773606633826,-500.0,0.00019999,2]
[408431641,1773606633835,-500.0,0.00019999,2]
[408431642,1773606633845,-500.0,0.00019999,2]
[408431643,1773606633854,-500.0,0.00019999,2]
[408431644,1773606633863,-500.0,0.00019999,2]
[408431645,1773606633872,-4862.5414158,0.00019999,2]
[408431646,1773606633882,-500.0,0.00019999,2]
[408431647,1773606633891,-3000.0,0.00019999,2]
[408431648,1773606633901,-500.0,0.00019999,2]
[408431649,1773606633912,-500.0,0.00019999,2]
[408431650,1773606633921,-640.28,0.00019999,2]
[408431651,1773606633931,-588.84,0.00019999,2]
[408431652,1773606633943,-267.23423719,0.00019999,2]
[408431653,1773606633953,-333.95763364,0.00019999,2]
[408431654,1773606633962,-5029.0,0.0002,5]
[408431655,1773606633971,-4800.0,0.0002,5]
[408431656,1773606633981,-17439.86395866,0.0002,2]
[408431657,1773606634070,-15305.49402491,0.0002,2]
[408431658,1773606634081,-16075.32870174,0.0002,2]
[408431666,1773606638255,-367.21087151,0.000199,2]
[408431667,1773606638264,-273.72781346,0.000199,2]
[408431668,1773606638327,-453.00898369,0.000199,2]
[408431669,1773606638391,-1273.26320285,0.000199,2]
[408431670,1773606638400,-272174.25702906,0.0002,2]
[408431671,1773606638411,-21853.61528441,0.0002,2]
[408431672,1773606638447,-410.03200002,0.0002,2]
[408431673,1773606638459,-3216.5170958,0.0002,2]
[408431813,1773606640454,-5444.18209384,0.000199,2]
[408431816,1773606640464,-4527406.04674579,0.0002,2]
[408431818,1773606640473,-201313.80087307,0.0002,2]
[408431829,1773606640559,-2183.52560609,0.0002,2]
[408431858,1773606640828,-497.813004,0.0002,2]
[408431883,1773606641051,-1739.2125644,0.0002,2]
[408432111,1773606643344,-415.60386992,0.0002,2]
[408432112,1773606643355,-1872.49844237,0.0002,2]
[408432113,1773606643402,-1747.45938299,0.0002,2]
[408432114,1773606643458,-1016.49353724,0.0002,2]
[408432138,1773606643736,-10776.45573507,0.0002,2]
[408432141,1773606643751,-20030.36061481,0.0002,2]
[408432247,1773606646145,-5632.25459061,0.0002,2]
[408432248,1773606646160,-4074.12,0.0002,2]
[408432249,1773606646202,-433.44850087,0.0002,2]
[408432250,1773606646532,-8995.41348923,0.0002,2]
[408432251,1773606646590,-6498.98268845,0.0002,2]
[408432252,1773606646601,-883.4800005,0.0002,2]
[408432254,1773607624939,2676.03,0.00011689,2]
[408432255,1773607627513,427.83,9.177e-05,2]
[408432256,1773607627937,427.83,9.66e-05,2]
[408432257,1773607628151,427.83,0.00010144,2]
[408432258,1773607628367,427.83,0.00010627,2]
[408432259,1773607628574,427.83,0.0001111,2]
[408432260,1773607628793,427.83,0.00011593,2]
[408432261,1773607772130,-427.83,0.00012076,2]
[408432262,1773607772151,-427.83,0.00012559,2]
[408432263,1773607772172,-427.83,0.00013042,2]
[408432264,1773607772193,-350.47576,0.00013525,2]
[408432273,1773607831334,-77.35424,0.00013525,2]
[408432275,1773607831345,-427.83,0.00014008,2]
[408432276,1773607831356,-160.54571843,0.00014491,2]
[408432277,1773607831388,-267.28428157,0.00014491,2]
[408432278,1773607831399,-176.66,0.00014714,2]
[408432279,1773607831409,-119.34054154,0.00014974,2]
[408432280,1773607831445,-308.48945846,0.00014974,2]
[408432281,1773607831455,-427.83,0.00015457,2]
[408432282,1773607831466,-212.38317708,0.00015636,2]
[408432283,1773607831478,-876.10682292,0.00015636,2]
[408432284,1773607831488,-427.83,0.0001594,2]
[408432285,1773607831498,-199.62686483,0.00016342,2]
[408432286,1773607831508,-427.83,0.00016423,2]
[408432287,1773607831520,-1200.0,0.00016442,2]
[408432288,1773607831530,-427.83,0.00016906,2]
[408432289,1773607831541,-516.0,0.00017,2]
[408432290,1773607831551,-300.0,0.00017388,2]
[408432292,1773607831560,-427.83,0.00017389,2]
[408432293,1773607831570,-784.55377187,0.00017808,2]
[408432294,1773607831580,-8846.7792082,0.00017818,2]
[408432295,1773607831591,-427.83,0.00017872,2]
[408432296,1773607831601,-1271.0,0.00018059,2]
[408432298,1773607831612,-531.23647265,0.00018167,2]
[408432300,1773607831622,-584.42974455,0.00018167,2]
[408432302,1773607831633,-500.0,0.00018167,2]
[408432305,1773607831643,-427.83,0.00018355,2]
[408432307,1773607831655,-2000.0,0.00018412,2]
[408432309,1773607831666,-2217.05,0.00018448,2]
[408432313,1773607831675,-3240.0,0.00018543,2]
[408432316,1773607831686,-168.0,0.00018727,2]
[408432319,1773607831696,-4828.35065957,0.00018819,2]
[408432321,1773607831706,-168.0,0.00018838,2]
[408432323,1773607831716,-168.0,0.00018852,2]
[408432325,1773607831726,-168.0,0.00018902,2]
[408432327,1773607831736,-168.0,0.0001893,2]
[408432329,1773607831747,-168.0,0.0001896,2]
[408432331,1773607831758,-500.0,0.00018999,2]
[408432334,1773607831768,-500.0,0.00018999,2]
[408432336,1773607831779,-500.0,0.00018999,2]
[408432338,1773607831792,-500.0,0.00018999,2]
[408432340,1773607831803,-500.0,0.00018999,2]
[408432342,1773607831813,-151.0,0.00018999,2]
[408432344,1773607831824,-500.0,0.00018999,2]
[408432345,1773607831835,-500.0,0.00018999,2]
[408432346,1773607831846,-500.0,0.00018999,2]
[408432347,1773607831856,-500.0,0.00018999,2]
[408432348,1773607831867,-500.0,0.00018999,2]
[408432349,1773607831877,-500.0,0.00018999,2]
[408432350,1773607831887,-500.0,0.00018999,2]
[408432351,1773607831896,-151.0,0.00018999,2]
[408432352,1773607831907,-151.0,0.00018999,2]
[408432353,1773607831919,-197.65765567,0.00018999,2]
[408432354,1773607831929,-2000.0,0.00019048,2]
[408432355,1773607831939,-151.0,0.00019054,2]
[408432356,1773607831949,-151.0,0.00019109,2]
[408432357,1773607831959,-3157.75736744,0.00019112,2]
[408432358,1773607831970,-168.0,0.00019197,2]
[408432359,1773607831980,-1102.0,0.00019214,2]
[408432360,1773607831991,-1102.0,0.0001923,2]
[408432361,1773607832001,-168.0,0.00019234,2]
[408432362,1773607832012,-168.0,0.00019247,2]
[408432363,1773607832023,-168.0,0.00019255,2]
[408432364,1773607832034,-1044.68672923,0.000193,2]
[408432365,1773607832045,-168.0,0.00019385,2]
[408432366,1773607832056,-168.0,0.00019399,2]
[408432367,1773607832066,-1802.0,0.000195,2]
[408432368,1773607832075,-200.0,0.00019641,2]
[408432369,1773607832086,-180.0,0.00019641,2]
[408432370,1773607832096,-150.0,0.00019641,2]
[408432371,1773607832107,-150.0,0.00019641,2]
[408432372,1773607832119,-150.0,0.00019641,2]
[408432373,1773607832130,-199.62686483,0.00019715,2]
[408432374,1773607832141,-67357.542,0.00019799,2]
[408432375,1773607832152,-297.32985367,0.00019815,2]
[408432376,1773607832163,-174.75800875,0.00019848,2]
[408432377,1773607832175,-150.23101527,0.00019873,2]
[408432378,1773607832185,-500.0,0.00019873,2]
[408432379,1773607832195,-500.0,0.00019873,2]
[408432380,1773607832205,-21581.4659,0.00019899,2]
[408432381,1773607832215,-1000.0,0.00019899,2]
[408432382,1773607832225,-500.0,0.00019899,2]
[408432383,1773607832235,-475.12005917,0.00019899,2]
[408432384,1773607832246,-500.0,0.00019899,2]
[408432385,1773607832256,-500.0,0.00019899,2]
[408432386,1773607832267,-500.0,0.00019899,2]
[408432387,1773607832277,-500.0,0.00019899,2]
[408432388,1773607832287,-500.0,0.00019899,2]
[408432389,1773607832296,-245.25595034,0.00019899,2]
[408432390,1773607832306,-500.0,0.00019899,2]
[408432391,1773607832315,-500.0,0.00019899,2]
[408432392,1773607832325,-500.0,0.00019899,2]
[408432393,1773607832335,-484.22233216,0.00019899,2]
[408432394,1773607832344,-500.0,0.00019899,2]
[408432395,1773607832354,-500.0,0.00019899,2]
[408432396,1773607832364,-166.06421381,0.00019899,2]
[408432397,1773607832373,-500.0,0.00019899,2]
[408432398,1773607832382,-500.0,0.00019899,2]
[408432399,1773607832393,-500.0,0.00019899,2]
[408432400,1773607832405,-500.0,0.00019899,2]
[408432401,1773607832416,-500.0,0.00019899,2]
[408432402,1773607832427,-500.0,0.00019899,2]
[408432403,1773607832438,-500.0,0.00019899,2]
[408432404,1773607832447,-500.0,0.00019899,2]
[408432405,1773607832458,-500.0,0.00019899,2]
[408432406,1773607832470,-500.0,0.00019899,2]
[408432407,1773607832479,-500.0,0.00019899,2]
[408432408,1773607832488,-500.0,0.00019899,2]
[408432409,1773607832497,-500.0,0.00019899,2]
[408432410,1773607832508,-500.0,0.00019899,2]
[408432411,1773607832517,-500.0,0.00019899,2]
[408432412,1773607832526,-500.0,0.00019899,2]
[408432413,1773607832535,-500.0,0.00019899,2]
[408432414,1773607832544,-500.0,0.00019899,2]
[408432415,1773607832554,-289.24742858,0.00019899,2]
[408432416,1773607832564,-500.0,0.00019899,2]
[408432417,1773607832574,-500.0,0.00019899,2]
[408432418,1773607832584,-500.0,0.00019899,2]
[408432419,1773607832594,-7035.4033159,0.000199,2]
[408432420,1773607832605,-1102.0,0.00019904,2]
[408432421,1773607832614,-209.59,0.00019915,2]
[408432422,1773607832624,-614.26815895,0.00019973,2]
[408432423,1773607832633,-500.0,0.00019973,2]
[408432424,1773607832643,-502.0907168,0.00019973,2]
[408432425,1773607832652,-500.0,0.00019973,2]
[408432426,1773607832661,-550.0891429,0.00019973,2]
[408432427,1773607832671,-502.15971815,0.00019973,2]
[408432428,1773607832680,-500.0,0.00019973,2]
[408432429,1773607832690,-500.0,0.00019973,2]
[408432430,1773607832700,-500.0,0.00019999,2]
[408432431,1773607832710,-500.0,0.00019999,2]
[408432432,1773607832720,-500.0,0.00019999,2]
[408432433,1773607832731,-500.0,0.00019999,2]
[408432434,1773607832741,-500.0,0.00019999,2]
[408432435,1773607832751,-500.0,0.00019999,2]
[408432436,1773607832761,-500.0,0.00019999,2]
[408432437,1773607832772,-500.0,0.00019999,2]
[408432438,1773607832782,-500.0,0.00019999,2]
[408432439,1773607832796,-490.36246193,0.00019999,2]
[408432440,1773607832806,-294.85572578,0.00019999,2]
[408432441,1773607832816,-500.0,0.00019999,2]
[408432442,1773607832826,-500.0,0.00019999,2]
[408432443,1773607832837,-533.95547895,0.00019999,2]
[408432444,1773607832847,-322.7516924,0.00019999,2]
[408432445,1773607832857,-500.0,0.00019999,2]
[408432446,1773607832869,-193.25372335,0.00019999,2]
[408432447,1773607832878,-58187.27297761,0.0002,2]
[408432448,1773607832892,-2736.0886999,0.0002,2]
[408432449,1773607832904,-854.30213,0.0002,2]
[408432450,1773607832917,-2072.84178342,0.0002,2]
[408432451,1773607832933,-1424.51542341,0.0002,2]
[408432452,1773607832946,-575.75,0.0002,2]
[408432459,1773607837388,-863.73012948,0.0002,2]
[408432460,1773607837445,-705.19622879,0.0002,2]
[408432461,1773607837457,-3424.37572502,0.0002,2]
[408432462,1773607837469,-422.58467,0.0002,2]
[408432463,1773607837480,-6814.94453654,0.0002,2]
[408432464,1773607837500,-1042.26304133,0.0002,2]
[408432465,1773607837556,-1542.7666348,0.0002,2]
[408432466,1773607837567,-1953.96784258,0.0002,2]
[408432467,1773607837577,-1340.25226352,0.0002,2]
[408432468,1773607837588,-13980.22930108,0.0002,2]
[408432469,1773607837599,-2181.6451335,0.0002,2]
[408432470,1773607837610,-12496.31740234,0.0002,2]
[408432471,1773607837663,-122832.14699292,0.0002,2]
[408432472,1773607837673,-154.74,0.0002,7]
[408432473,1773607837682,-500.0,0.0002,2]
[408432474,1773607837691,-435.0,0.0002,2]
[408432475,1773607837700,-355.0,0.0002,2]
[408432476,1773607837710,-151.0,0.0002,2]
[408432477,1773607837719,-151.0,0.0002,2]
[408432479,1773607837729,-300.0,0.0002,2]
[408432481,1773607837738,-41841.7753586,0.0002,2]
[408432483,1773607837747,-1416.0974995,0.0002,2]
[408432485,1773607837757,-1151.19909981,0.0002,30]
[408432487,1773607837767,-200.0,0.0002,2]
[408432488,1773607837776,-17943.7973368,0.0002,2]
[408432490,1773607837785,-708.84902,0.0002,2]
[408432492,1773607837799,-200.0,0.0002,10]
[408432493,1773607837808,-11698.6787966,0.0002,2]
[408432494,1773607837817,-500.0,0.0002,2]
[408432495,1773607837826,-474.12914604,0.0002,2]
[408432496,1773607837837,-224.36,0.0002,2]
[408432497,1773607837847,-196.61,0.00020093,2]
[408432498,1773607837856,-300.0,0.000201,10]
[408432499,1773607837866,-168.0,0.00020191,2]
[408432500,1773607837875,-708.84902,0.000202,2]
[408432501,1773607837885,-1102.0,0.00020238,2]
[408432502,1773607837894,-688.43,0.00020257,2]
[408432503,1773607837903,-1778.0,0.00020285,2]
[408432504,1773607837914,-500.0,0.00020286,2]
[408432505,1773607837923,-500.0,0.00020286,2]
[408432506,1773607837932,-500.0,0.00020286,2]
[408432507,1773607837942,-500.0,0.00020286,2]
[408432508,1773607837952,-500.0,0.00020286,2]
[408432509,1773607837962,-500.0,0.00020286,2]
[408432510,1773607837971,-1778.0,0.00020287,2]
[408432511,1773607837980,-181.52,0.00020358,2]
[408432512,1773607837990,-708.84902,0.000204,2]
[408432513,1773607837999,-1102.0,0.0002041,2]
[408432514,1773607838008,-1000.0,0.00020421,2]
[408432515,1773607838017,-1000.0,0.00020421,2]
[408432516,1773607838027,-168.0,0.00020488,2]
[408432517,1773607838037,-607.54471744,0.00020521,2]
[408432518,1773607838046,-1000.0,0.00020521,2]
[408432519,1773607838055,-1000.0,0.00020521,2]
[408432520,1773607838065,-1002.06348181,0.00020521,2]
[408432521,1773607838074,-213.0,0.000206,7]
[408432522,1773607838083,-708.84902,0.000206,2]
[408432523,1773607838092,-1102.0,0.00020602,2]
[408432524,1773607838101,-4137.0,0.00020719,2]
[408432525,1773607838111,-336.154063,0.00020797,7]
[408432526,1773607838121,-234.483925,0.00020797,7]
[408432527,1773607838130,-708.84902,0.000208,2]
[408432528,1773607838140,-1102.0,0.00020874,2]
[408432529,1773607838149,-166.66,0.00020902,2]
[408432530,1773607838159,-368.0,0.00020933,2]
[408432531,1773607838169,-1500.0,0.00020968,2]
[408432532,1773607838178,-504.77307039,0.00020968,2]
[408432533,1773607838188,-181.52,0.00020994,2]
[408432534,1773607838200,-708.84903,0.00021,2]
[408432535,1773607838209,-1582.79149752,0.00021068,2]
[408432536,1773607838219,-500.0,0.00021068,2]
[408432537,1773607838232,-688.43,0.00021221,2]
[408432538,1773607838241,-2000.0,0.00021429,2]
[408432539,1773607838250,-2000.0,0.00021516,2]
[408432540,1773607838258,-469.87233333,0.00021529,2]
[408432541,1773607838267,-160.0,0.00021529,2]
[408432542,1773607838276,-166.66,0.00021592,2]
[408432543,1773607838285,-453.116206,0.00021624,7]
[408432544,1773607838295,-700.0,0.00021885,2]
[408432545,1773607838304,-500.0,0.00021916,2]
[408432546,1773607838313,-5000.0,0.00021918,2]
[408432547,1773607838326,-291.53,0.00021918,2]
[408432548,1773607838335,-2908.0,0.00022,5]
[408432549,1773607838345,-500.0,0.00022,2]
[408432550,1773607838355,-500.82110043,0.00022,2]
[408432551,1773607838365,-1014.23929202,0.00022064,2]
[408432552,1773607838374,-17943.7973368,0.00022066,2]
[408432553,1773607838384,-1416.0974995,0.00022102,2]
[408432554,1773607838394,-688.43,0.00022186,2]
[408432555,1773607838404,-19051.02016975,0.00022192,2]
[408432556,1773607838416,-1548.78893979,0.00022192,2]
[408432557,1773607838428,-15414.17565739,0.00022192,2]
[408432558,1773607838440,-2589.49791791,0.00022192,2]
[408432559,1773607839604,-320.463332,0.00020647,7]
[408432560,1773607839614,-365.44794427,0.00022192,2]
[408432561,1773607839798,-2529.30522254,0.00022192,2]
[408432562,1773607839812,-343.53950695,0.00022192,2]
[408432563,1773607839821,-151.0,0.00022192,2]
[408432564,1773607839831,-151.0,0.00022192,2]
[408432565,1773607839840,-501.74189694,0.00022217,2]
[408432566,1773607839849,-575.024674,0.00022217,2]
[408432567,1773607839858,-403.22228315,0.00022217,2]
[408432568,1773607839871,-100.44947411,0.00022217,2]
[408432569,1773607839880,-502.81664943,0.00022217,2]
[408432570,1773607839889,-156.0,0.0002227,120]
[408432571,1773607839899,-156.0,0.0002227,120]
[408432572,1773607839908,-166.66,0.00022282,2]
[408432573,1773607839917,-61.07887709,0.0002235,2]
[408432574,1773607839960,-170.00112291,0.0002235,2]
[408432575,1773607839969,-157.73,0.00022434,2]
[408432576,1773607839978,-501.48612057,0.00022548,2]
[408432577,1773607839988,-151.0,0.0002291,7]
[408432578,1773607839997,-166.66,0.00022972,2]
[408432579,1773607840006,-11698.6787966,0.00022989,2]
[408432580,1773607840016,-3633.0,0.0002315,5]
[408432582,1773607840026,-688.43,0.00023151,2]
[408432584,1773607840035,-719.77,0.00023151,2]
[408432586,1773607840044,-297.32985364,0.00023158,2]
[408432587,1773607840054,-1802.0,0.000232,2]
[408432588,1773607840063,-7035.4033159,0.00023233,2]
[408432589,1773607840072,-150.99,0.00023368,2]
[408432590,1773607840081,-55659.96,0.00023368,2]
[408432591,1773607840091,-150.99,0.00023368,2]
[408432592,1773607840100,-999.99,0.00023368,2]
[408432593,1773607840109,-9999.99,0.00023368,2]
[408432594,1773607840118,-9999.99,0.00023368,2]
[408432595,1773607840129,-166.66,0.00023662,2]
[408432596,1773607840138,-2000.0,0.0002381,2]
[408432597,1773607840147,-291.53,0.00024081,2]
[408432598,1773607840157,-17943.7973368,0.00024131,2]
[408432599,1773607840166,-1416.0974995,0.00024204,2]
[408432600,1773607840175,-166.66,0.00024352,2]
[408432601,1773607840184,-500.0,0.00024383,2]
[408432602,1773607840193,-500.0,0.00024383,2]
[408432603,1773607840202,-500.0,0.00024383,2]
[408432604,1773607840211,-500.0,0.00024383,2]
[408432605,1773607840219,-500.0,0.00024383,2]
[408432606,1773607840228,-500.0,0.00024383,2]
[408432607,1773607840237,-41841.7753586,0.00024384,2]
[408432608,1773607840246,-1000.0,0.00024658,2]
[408432609,1773607840255,-469.87233333,0.000249,3]
[408432610,1773607840264,-500.0,0.00025,30]
[408432611,1773607840273,-500.0,0.00025,30]
[408432612,1773607840282,-500.0,0.00025,30]
[408432613,1773607840291,-500.0,0.00025,30]
[408432614,1773607840300,-500.0,0.00025,30]
[408432615,1773607840309,-500.0,0.00025,30]
[408432616,1773607840318,-500.0,0.00025,30]
[408432617,1773607840327,-909.53474774,0.00025,30]
[408432618,1773607840336,-500.0,0.00025,30]
[408432619,1773607840345,-500.0,0.00025,30]
[408432620,1773607840354,-500.0,0.00025,30]
[408432621,1773607840363,-500.0,0.00025,30]
[408432622,1773607840372,-500.0,0.00025,30]
[408432623,1773607840382,-500.0,0.00025,30]
[408432624,1773607840391,-500.0,0.00025,30]
[408432625,1773607840400,-500.0,0.00025,30]
[408432626,1773607840409,-500.0,0.00025,30]
[408432627,1773607840418,-500.0,0.00025,30]
[408432628,1773607840427,-500.0,0.00025,30]
[408432629,1773607840437,-500.0,0.00025,30]
[408432630,1773607840446,-500.0,0.00025,30]
[408432631,1773607840456,-500.0,0.00025,30]
[408432632,1773607840465,-469.87233333,0.00025,30]
[408432633,1773607840474,-500.0,0.00025,30]
[408432634,1773607840483,-500.0,0.00025,30]
[408432635,1773607840492,-500.0,0.00025,30]